Cogmind - Beta 10.2 *** ADVENTURER MODE // 2022.01.07 @ 02:10:16 Player: Jezoensis Result: Destroyed by Architect with Modified Quantum Sheargun Performance ------------- Evolutions (9) 4500 Regions Visited (29) 5800 Robots Destroyed (429) 2145 Value Destroyed (20612) 20612 Prototype IDs (74) 1480 Alien Tech Used (2) 400 Bonus (31517) 31517 TOTAL SCORE: 66454 Bonus ------- High Alert Combat Kills 2251 Follower Combat Kills 1144 Entered Garrisons 1000 Used RIF Installer 2500 Network Hubs Disabled 800 Aligned with FarCom 300 Met Zhirov 300 Met R17 at Cetus 500 Met R17 at Research 2000 Destroyed MAIN.C Guards 500 Met MAIN.C 5000 Destroyed MAIN.C Shell 5000 Destroyed MAIN.C 10000 Met Architect 300 Destroyed A8 300 Friendly Fire -378 Cogmind --------- Core Integrity 0/1600 Matter 300/300 Energy 98/100 System Corruption 0% Temperature Cool (0) Movement Core (50) Location -1/Access_0 Parts ------- > --- POWER (1) -------- (None) > --- PROPULSION (4) --- (None) > --- UTILITY (13) ----- Experimental Coolant Injector Experimental Optical Array Long-range Terrain Scanner Experimental Terrain Scan Processor Makeshift Salvage Targeting Computer Advanced Target Analyzer > --- WEAPON (7) ------- (None) > --- INVENTORY (4) ---- Advanced Salvage Targeting Computer Advanced Transmission Jammer Advanced Transmission Jammer Antimissile System Peak State ------------ > --- POWER ------------ Zero-point Reactor > --- PROPULSION ------- Biometal Heavy Treads Advanced Heavy Siege Treads > --- UTILITY ---------- Experimental Coolant Injector Large Storage Unit Large Storage Unit Large Storage Unit High-capacity Storage Unit Experimental Optical Array Experimental Terrain Scan Processor Makeshift Salvage Targeting Computer Advanced Target Analyzer Advanced Armor Integrity Analyzer Improved Kinecellerator Improved Weapon Cycler Thermal Barrier > --- WEAPON ----------- KE Penetrator KE Penetrator KE Penetrator KE Penetrator Railgun Multirail Multirail > --- INVENTORY -------- Quantum Reactor Biometal Heavy Treads Biometal Heavy Treads Biometal Heavy Treads Experimental Coolant Injector Experimental Matter Compressor Experimental Matter Compressor Experimental Matter Compressor Long-range Terrain Scanner Advanced Salvage Targeting Computer Weapon Cycler Advanced Transmission Jammer Advanced Transmission Jammer Antimissile System System Backup Module Long-range Tractor Beam Advanced Integration Mediator Enhanced Nova Cannon KE Penetrator KE Penetrator Railgun Railgun Railgun Railgun Improved KE Penetrator [Rating: 189] Favorites ----------- Power Quantum Reactor Engine Ion Engine Power Core Micro Fission Core Reactor Quantum Reactor Propulsion Light Treads Treads Light Treads Utility Large Storage Unit Device Long-range Terrain Scanner Storage Large Storage Unit Processor Advanced Terrain Scan Processor Hackware Improved Hacking Suite Protection Improved Utility Shielding Weapon KE Penetrator Energy Gun Lightning Gun Energy Cannon Matter Neutralizer Ballistic Gun KE Penetrator Ballistic Cannon Graviton Cannon Launcher Grenade Launcher Special Weapon Mining Laser Slashing Weapon Chainsword Build | -11 -10 -10 -10 -9 -8 -8 -8 -8 -7 -7 -7 -7 -6 -6 -5 -5 -5 -5 -4 -4 -4 -4 -4 -4 -3 -2 -1 -1 -1 ------- Run | Scr Mat Min Exi Min Mat Gar Mat Gar Fac Gar Fac Gar Fac Gar Fac Upp Upp Zhi Pro Fac Ext Cet Arc Hub Res Res Acc Com Ac0 Slots Evolved 18 | . . . . . 4 . . . 2 . . . 2 . 2 . . . . 2 . . . . 2 2 2 . . Power . | . . . . . . . . . . . . . . . . . . . . . . . . . . . . . . Propulsion 2 | . . . . . 1 . . . . . . . . . 1 . . . . . . . . . . . . . . Utility 11 | . . . . . 2 . . . 1 . . . 2 . 1 . . . . 1 . . . . 2 1 1 . . Weapon 5 | . . . . . 1 . . . 1 . . . . . . . . . . 1 . . . . . 1 1 . . Parts Attached 863 | 7 10 . 2 6 43 10 18 6 34 6 8 19 37 19 52 13 20 4 31 17 34 24 8 68 42 154 14 88 69 Power 24 | 1 . . . 1 2 1 . . 2 . . 1 1 . 2 . . 1 . . 1 1 . 1 1 6 . 2 . Engine 6 | 1 . . . 1 1 . . . 2 . . . 1 . . . . . . . . . . . . . . . . Core 7 | . . . . . 1 1 . . . . . 1 . . 2 . . 1 . . 1 . . . . . . . . Reactor 11 | . . . . . . . . . . . . . . . . . . . . . . 1 . 1 1 6 . 2 . Propulsion 66 | 2 . . . . 10 . 3 . . . . 7 3 . 8 . . . 3 . 6 6 . 1 4 5 . 5 3 Treads 66 | 2 . . . . 10 . 3 . . . . 7 3 . 8 . . . 3 . 6 6 . 1 4 5 . 5 3 Leg . | . . . . . . . . . . . . . . . . . . . . . . . . . . . . . . Wheel . | . . . . . . . . . . . . . . . . . . . . . . . . . . . . . . Hover . | . . . . . . . . . . . . . . . . . . . . . . . . . . . . . . Flight . | . . . . . . . . . . . . . . . . . . . . . . . . . . . . . . Utility 510 | 2 3 . 2 1 8 5 6 3 19 5 4 4 23 16 26 9 13 3 22 14 19 12 4 45 29 96 9 59 49 Device 403 | 1 1 . . . 6 5 3 3 10 3 4 3 16 14 22 7 10 2 13 10 12 11 4 33 21 80 8 56 45 Storage 27 | 1 1 . 2 1 . . . . 2 . . . 2 . . . . 1 1 1 2 . . . 1 6 . 2 4 Processor 14 | . . . . . 1 . 1 . 3 . . . . . 2 . . . 1 . . . . 1 1 2 1 1 . Hackware 14 | . . . . . 1 . 2 . 2 . . . . . . . . . . . 1 . . 1 2 5 . . . Protection 52 | . 1 . . . . . . . 2 2 . 1 5 2 2 2 3 . 7 3 4 1 . 10 4 3 . . . Artifact . | . . . . . . . . . . . . . . . . . . . . . . . . . . . . . . Weapon 263 | 2 7 . . 4 23 4 9 3 13 1 4 7 10 3 16 4 7 . 6 3 8 5 4 21 8 47 5 22 17 Energy Gun 23 | 1 2 . . 2 7 . 1 1 2 . 2 . 1 . 4 . . . . . . . . . . . . . . Energy Cannon 37 | . . . . . . . . . 3 . 1 . 1 . 1 1 2 . 3 2 1 . . 5 3 11 . 2 1 Ballistic Gun 162 | 1 1 . . 1 9 2 4 1 6 1 . 7 7 3 7 2 3 . 2 1 7 5 4 14 4 33 5 16 16 Ballistic Cannon 9 | . . . . . . . . . . . . . . . . . . . . . . . . 1 1 3 . 4 . Launcher 12 | . 1 . . 1 1 2 . 1 . . . . . . 1 1 2 . 1 . . . . 1 . . . . . Special Weapon 9 | . 3 . . . 6 . . . . . . . . . . . . . . . . . . . . . . . . Impact Weapon . | . . . . . . . . . . . . . . . . . . . . . . . . . . . . . . Slashing Weapon 11 | . . . . . . . 4 . 2 . 1 . 1 . 3 . . . . . . . . . . . . . . Piercing Weapon . | . . . . . . . . . . . . . . . . . . . . . . . . . . . . . . Special Melee Weapon . | . . . . . . . . . . . . . . . . . . . . . . . . . . . . . . Unidentified Prototypes 26 | . . . . . 2 . . . 1 . . . . . 1 . . 3 2 . 1 3 . 3 3 1 1 4 1 Parts Lost 72 | . . . . 1 . . . . 3 . . 10 . 1 1 . . . 3 . 2 . . 3 . 20 . 2 26 Power 4 | . . . . . . . . . . . . 1 . . . . . . . . . . . . . 2 . . 1 Propulsion 17 | . . . . . . . . . . . . 4 . . . . . . 3 . . . . 1 . 4 . . 5 Utility 14 | . . . . . . . . . 1 . . 1 . . . . . . . . . . . . . 5 . 1 6 Weapon 37 | . . . . 1 . . . . 2 . . 4 . 1 1 . . . . . 2 . . 2 . 9 . 1 14 Highest Loss Streak 14 | . . . . 1 . . . . 2 . . 10 . 1 1 . . . 1 . 1 . . 1 . 12 . 2 14 Average Slot Usage (%) 92 | . 100 100 100 100 99 100 100 100 96 92 92 90 93 93 93 94 94 92 91 94 92 84 84 83 88 90 92 91 88 Engine 2 | . 14 14 14 14 7 . . . 4 7 7 2 . 6 . . . . . . . . . . . . . . . Core 2 | . . . . . 1 9 9 9 2 . . 4 5 . 4 5 5 5 5 5 5 . . . . . . . . Reactor 1 | . . . . . . . . . . . . . . . . . . . . . . 4 5 4 4 3 4 4 3 Treads 17 | . 28 28 28 28 27 27 27 27 23 23 23 21 20 20 23 23 23 23 21 21 19 10 10 10 12 8 8 7 7 Device 9 | . 13 14 9 . 6 9 5 9 5 4 7 6 9 12 9 10 10 9 8 8 4 4 5 6 9 14 16 15 15 Storage 14 | . 14 14 18 28 18 18 18 18 11 7 7 7 13 13 11 11 11 11 11 11 15 15 15 15 15 15 16 16 16 Processor 13 | . . . . . 9 9 9 9 10 15 15 15 13 13 13 17 17 17 17 15 15 15 15 15 14 16 20 20 19 Hackware 1 | . . . . . 2 . 3 . 4 . . . . . . . . . . . 2 . . . 2 2 . . . Protection 1 | . . . . . . . . . . 2 . . 3 . 4 . . . 2 5 3 5 5 3 4 . . . . Energy Gun 2 | . 11 . . 5 8 18 12 9 2 . 4 3 . . 3 . . . . . . . . . . . . . . Energy Cannon 1 | . . . . . . . . . 1 2 2 . . . . 3 3 . . 5 . . . 2 2 1 1 . . Ballistic Gun 21 | . 14 14 14 17 17 8 12 16 22 27 18 25 23 26 16 18 18 23 22 21 25 25 26 23 20 23 26 26 24 Naked Turns . | . . . . . . . . . . . . . . . . . . . . . . . . . . . . . . Heaviest Build 159 | 14 20 20 35 45 51 51 51 51 57 54 36 46 66 66 76 67 69 64 84 94 113 126 120 128 138 155 151 159 144 Greatest Support 160 | 40 40 40 40 40 60 60 62 62 62 62 62 62 68 68 97 92 92 92 107 107 126 160 160 160 160 155 155 155 155 Greatest Overweight (x) 1 | . . . . 1 . . . . . . . 1 . . . . . . . . . . . . 1 . . 1 1 Average Overweight (x) . | . . . . . . . . . . . . . . . . . . . . . . . . . . . . . . Largest Inventory Capacity 46 | 6 8 8 14 16 16 16 16 16 32 24 24 24 32 32 32 32 32 32 38 38 40 40 40 40 46 46 30 30 30 Average Capacity 28 | 5 6 8 10 14 16 16 16 16 19 24 24 24 30 32 32 32 32 32 32 33 38 40 40 40 41 32 30 30 28 Most Carried 45 | 4 8 8 12 16 16 16 16 16 22 21 24 24 32 32 32 32 32 32 32 37 40 40 40 40 45 44 30 30 30 Average Carried 27 | 2 5 8 9 12 15 15 15 16 17 20 23 21 28 31 31 31 31 31 31 32 37 39 40 39 39 31 29 29 23 Final Capacity 46 | 6 8 8 14 16 16 16 16 16 24 24 24 24 32 32 32 32 32 32 38 38 40 40 40 40 46 30 30 30 4 Final Carried 45 | 3 8 8 12 16 16 16 16 16 21 21 24 22 32 31 32 32 32 32 31 37 40 40 40 38 45 30 30 29 4 Class Distribution -------------------- 19% | Scavenger-Skirmisher 16% | Hauler-Skirmisher 16% | Scavenger-Executioner 14% | Scavenger-Mutant 7% | Mutant 7% | Hauler-Mutant 5% | Hauler-Assassin 3% | Commander-Skirmisher Dominant Class ---------------- Mutant | -10/Materials Mutant | -10/Mines Mutant | -10/Exiles Mutant | -9/Mines Scavenger-Skirmisher | -8/Materials Scavenger-Skirmisher | -8/Garrison Hacker-Skirmisher | -8/Materials Skirmisher | -8/Garrison Hauler-Skirmisher | -7/Factory Hauler-Skirmisher | -7/Garrison Hauler-Assassin | -7/Factory Scavenger-Skirmisher | -7/Garrison Hauler-Assassin | -6/Factory Hauler-Skirmisher | -6/Garrison Hauler-Assassin | -5/Factory Scavenger-Mutant | -5/Upper Caves Scavenger-Mutant | -5/Upper Caves Scavenger-Skirmisher | -5/Zhirov Scavenger-Skirmisher | -4/Proximity Caves Scavenger-Skirmisher | -4/Factory Commander-Skirmisher | -4/Extension Hauler-Skirmisher | -4/Cetus Hauler-Skirmisher | -4/Archives Hauler-Skirmisher | -4/Hub_04(d) Hauler-Mutant | -3/Research Scavenger-Executioner | -2/Research Scavenger-Executioner | -1/Access Scavenger-Executioner | -1/Command Scavenger-Executioner | -1/Access_0 Resources | -11 -10 -10 -10 -9 -8 -8 -8 -8 -7 -7 -7 -7 -6 -6 -5 -5 -5 -5 -4 -4 -4 -4 -4 -4 -3 -2 -1 -1 -1 ----------- Run | Scr Mat Min Exi Min Mat Gar Mat Gar Fac Gar Fac Gar Fac Gar Fac Upp Upp Zhi Pro Fac Ext Cet Arc Hub Res Res Acc Com Ac0 Matter Collected 28451 | 297 169 . 20 131 719 212 197 52 870 220 87 457 625 603 1043 256 311 . 909 264 1215 526 344 2319 1379 6436 628 5489 2673 Remotely 13200 | . . . . . . 192 . 52 515 220 87 270 173 461 563 . 129 . 134 119 190 445 250 1069 757 3675 292 2453 1154 Salvage Created 29673 | 152 425 . . 120 1214 317 456 82 923 309 87 631 753 640 880 253 301 . 714 264 937 220 420 3601 1346 8241 792 4314 1281 Parts 1488 | 12 23 . . 16 67 17 26 3 56 21 6 30 28 29 45 5 17 . 26 16 54 12 22 198 38 403 36 185 97 Haulers Intercepted 14 | . 2 . . . 2 . . . . . 1 . 3 . . . . . 1 . . . . . 4 1 . . . Recyclers Shooed 11 | . . . . . . . . . 1 . . . 3 . 1 . . . . . . . . . 1 4 . 1 . Parts Field Recycled . | . . . . . . . . . . . . . . . . . . . . . . . . . . . . . . Retrieved Matter . | . . . . . . . . . . . . . . . . . . . . . . . . . . . . . . Parts Self-Destructed 45 | . . . . . . . . . . . . . . . . 7 15 . 23 . . . . . . . . . . Prevented 1 | . . . . . . . . . . . . . . . . 1 . . . . . . . . . . . . . Kills | -11 -10 -10 -10 -9 -8 -8 -8 -8 -7 -7 -7 -7 -6 -6 -5 -5 -5 -5 -4 -4 -4 -4 -4 -4 -3 -2 -1 -1 -1 ------- Run | Scr Mat Min Exi Min Mat Gar Mat Gar Fac Gar Fac Gar Fac Gar Fac Upp Upp Zhi Pro Fac Ext Cet Arc Hub Res Res Acc Com Ac0 Combat Hostiles Destroyed 301 | . 7 . . 5 19 10 9 3 13 7 . 17 2 13 8 6 10 . 12 3 9 3 4 31 1 72 4 21 12 Guns 260 | . 6 . . 1 15 5 9 1 12 7 . 15 2 13 8 4 5 . 9 2 9 3 4 20 1 72 4 21 12 Cannons 2 | . . . . . . . . . 1 . . . . . . . . . . 1 . . . . . . . . . AOE 36 | . 1 . . 4 4 5 . 2 . . . 2 . . . 2 5 . 3 . . . . 8 . . . . . Classes Destroyed 18 | 2 5 . . 2 2 2 . . . . . . 1 . . . . . . . . . . 2 . 2 . . . Worker 24 | . 2 . . . 3 . . . 5 . 1 . . . . . . . . . . . . 6 . 5 1 1 . Builder 13 | . 1 . . 2 . . . . 2 . . . . . . . . . . . . . . 1 1 6 . . . Tunneler 6 | 4 . . . . 1 . . . . . . . . . . . . . . . . . . . 1 . . . . Hauler 14 | . 2 . . . 2 . . . . . 1 . 3 . . . . . 1 . . . . . 4 1 . . . Recycler 37 | 1 . . . . . . . . 2 . . . 2 . 2 . . . . . 1 . . 6 5 8 2 8 . Mechanic 1 | . . . . . . . . . . . . . . . . . . . . . . . . . . 1 . . . Operator 6 | . . . . . 1 . 1 . 1 . . . . . . . . . . . . . . 2 . . . 1 . Watcher 27 | . 1 . . . 5 . 2 . . . 1 . 3 . 1 . . . . 1 1 . . 4 1 3 . 4 . Swarmer 52 | . . . . 4 3 4 4 . 1 3 . 10 . 4 . 1 6 . . . . . . 4 . 4 . 4 . Saboteur 2 | . . . . . . . . . . . . . . . . . . . . . . . . . . 2 . . . Grunt 111 | . 7 . . . 5 3 2 3 10 3 . 6 . 8 . 4 1 . 7 . 6 . . 6 . 37 3 . . Brawler 6 | . . . . . . 1 . . 1 . . . . . . . . . . . . . . 1 . 3 . . . Duelist 8 | . . . . . . 1 . . 1 . . . . 1 . . . . 1 . 1 . . 1 . 2 . . . Protector 5 | . . . . . . . . . . . . . . . . . . . . . . . . 3 . 2 . . . Sentry 42 | . . . . 1 9 . 3 . . 1 . 1 . . 4 1 1 . . . 2 . 4 5 1 7 . 2 . Hunter 22 | . . . . . 2 1 . . . . . . . . 2 . . . 2 2 . . . 1 . 8 . 4 . Programmer 24 | . . . . . . . . . . . . . 2 . 2 . 2 . 2 1 . 1 . 3 . 6 . 5 . Behemoth 3 | . . . . . . . . . . . . . . . . . . . . . . . . 1 . 1 1 . . Cetus Guard 2 | . . . . . . . . . . . . . . . . . . . . . . 2 . . . . . . . M Guard 2 | . . . . . . . . . . . . . . . . . . . . . . . . . . . . 2 . Enhanced Grunt 11 | . . . . . . . . . . . . . . . . . . . . . . . . . . . . . 11 Lightning 6 | . . . . . . . . . . . . . . . . . . . . . . . . 6 . . . . . Combat Programmer 2 | . . . . . . . . . . . . . . . . . . . . . . . . . . . . 2 . Best Kill Streak 25 | 5 7 . . 5 7 7 4 3 15 7 3 16 3 4 3 3 4 . 4 3 2 1 3 7 4 25 3 6 3 Combat Bots Only 21 | . 5 . . 4 5 7 4 3 7 7 . 16 1 4 3 3 4 . 4 3 2 1 3 7 1 21 3 4 3 Max Kills in Single Turn 8 | 1 2 . . 4 2 4 1 2 8 2 1 3 1 3 1 1 3 . 1 1 1 1 1 6 3 3 1 2 2 Gunslinging 2 | . . . . . . . . . 1 1 . 1 . 2 . . . . . . . . . 1 . 1 . 1 1 Exploded 6 | . 1 . . 3 2 4 . 2 . . . 2 . . . 1 3 . 1 . . . . 6 . . . . . Melee . | . . . . . . . . . . . . . . . . . . . . . . . . . . . . . . Uniques/NPCs Destroyed 3 | . . . . . . . . . . . . . . . . . . . . . . . . . . . . 2 1 MAIN.C Shell (-1/Command) MAIN.C (-1/Command) A8 (-1/Access_0) Combat | -11 -10 -10 -10 -9 -8 -8 -8 -8 -7 -7 -7 -7 -6 -6 -5 -5 -5 -5 -4 -4 -4 -4 -4 -4 -3 -2 -1 -1 -1 -------- Run | Scr Mat Min Exi Min Mat Gar Mat Gar Fac Gar Fac Gar Fac Gar Fac Upp Upp Zhi Pro Fac Ext Cet Arc Hub Res Res Acc Com Ac0 Damage Taken 26679 | . 238 . . 121 413 196 219 11 636 142 . 1474 41 400 656 148 246 . 943 303 325 214 183 2388 57 7328 224 2737 7036 Core 2586 | . 40 . . . 38 . . . 35 27 . 116 . 28 . . 16 . 110 . 55 . 18 188 . 390 31 135 1359 Absorbed by Shields 85 | . . . . . . . . . . . . . . . . . . . . . 39 46 . . . . . . . Reduced by Siege Mode 1272 | . . . . . . . . . . . . . . . . . . . . . . . . 138 . 533 16 281 304 Core Remaining (%) 87 | 100 . . . 84 . . . 93 . . . 74 . 96 . . . . 87 . . . . 77 100 73 . . . Volleys Fired 866 | 9 38 . . 8 58 10 21 3 26 8 3 24 19 25 32 20 17 . 38 15 28 14 11 88 24 147 16 84 80 Largest 7 | 2 2 . . 2 3 3 3 3 4 4 4 4 4 4 4 4 4 . 4 5 5 5 5 5 5 6 7 7 7 Hottest 329 | 70 100 . . 73 133 143 133 111 170 102 202 174 189 111 216 182 186 . 121 209 161 166 166 250 167 265 237 329 291 Shots Fired 3653 | 17 67 . . 14 150 27 63 8 102 32 12 85 75 97 116 47 41 . 121 47 126 70 55 326 83 742 92 548 490 Gun 3434 | 17 59 . . 12 138 24 63 5 89 32 9 84 73 97 112 33 31 . 111 36 125 70 55 293 74 715 90 501 486 Cannon 181 | . . . . . . . . . 13 . 3 1 2 . 4 12 7 . 6 11 1 . . 32 9 27 2 47 4 Launcher 21 | . . . . 2 3 3 . 3 . . . . . . . 2 3 . 4 . . . . 1 . . . . . Special 17 | . 8 . . . 9 . . . . . . . . . . . . . . . . . . . . . . . . Kinetic 3267 | 9 30 . . 9 85 7 26 3 76 32 3 70 72 97 78 33 31 . 111 36 125 70 55 300 74 719 90 540 486 Thermal 192 | 8 37 . . 3 9 . . . . . . . . . 33 12 7 . 6 5 1 . . 25 9 23 2 8 4 Explosive 21 | . . . . 2 3 3 . 3 . . . . . . . 2 3 . 4 . . . . 1 . . . . . Electromagnetic 173 | . . . . . 53 17 37 2 26 . 9 15 3 . 5 . . . . 6 . . . . . . . . . Robot Hit Streak 60 | 11 17 . . 11 22 39 40 9 40 22 17 34 25 34 44 31 33 . 44 13 27 34 26 34 41 60 35 51 42 Robot Miss Streak 6 | 1 2 . . 1 2 . 2 . 4 5 3 6 1 1 1 . 1 . 2 3 1 2 1 3 1 3 1 2 4 Penetration Max 2 | . . . . . . . . . . . . 1 . 1 . . . . 1 . 2 1 . 2 1 1 . 1 1 Secondary Targets 91 | . 1 . . . . 1 1 . 4 3 . 10 . 6 . . 1 . 3 1 1 1 1 4 . 41 . 6 6 Max Gunslinging Chain 2 | . 1 . . . . 1 1 . 1 1 . 2 . 2 . . 1 . 1 1 1 1 1 1 . 2 . 2 2 Shots Hit Robots 2768 | 13 48 . . 11 104 23 45 3 75 27 6 68 66 87 94 28 25 . 94 21 94 57 49 208 49 602 67 399 405 Core Hits 1311 | 6 24 . . 9 55 16 19 6 48 27 3 52 24 33 34 15 16 . 36 10 38 26 13 114 28 263 24 167 205 Critical Hits 273 | . 1 . . . . . . . . . . . 2 . 2 1 . . 3 1 6 3 4 24 9 59 10 77 71 Critical Kills 59 | . 1 . . . . . . . . . . . 2 . 1 . . . . 1 1 . 1 9 2 19 2 11 9 Critical Parts Destroyed 149 | . . . . . . . . . . . . . . . 1 1 . . 3 . 4 3 2 12 6 35 8 40 34 Melee Attacks 31 | . . . . . . . 6 . 11 . 2 . 3 . 9 . . . . . . . . . . . . . . Impact . | . . . . . . . . . . . . . . . . . . . . . . . . . . . . . . Slashing 31 | . . . . . . . 6 . 11 . 2 . 3 . 9 . . . . . . . . . . . . . . Piercing . | . . . . . . . . . . . . . . . . . . . . . . . . . . . . . . Sneak Attacks 1 | . . . . . . . . . . . . . . . 1 . . . . . . . . . . . . . . Combat Hostiles . | . . . . . . . . . . . . . . . . . . . . . . . . . . . . . . Follow-up Attacks . | . . . . . . . . . . . . . . . . . . . . . . . . . . . . . . Damage Inflicted 71383 | 159 798 . . 419 2134 803 918 375 2021 476 145 1414 1251 1479 1812 934 1178 . 2657 496 2647 1695 1127 8092 1780 15881 1616 10762 8314 Guns 61201 | 159 620 . . 110 1826 384 801 23 1098 476 78 1104 1188 1479 1663 510 547 . 1785 273 2642 1695 1127 5507 1780 15701 1576 8862 8187 Cannons 3178 | . . . . . . . . . 300 . 67 26 63 . 36 69 34 . . 223 . . . 233 . 139 . 1861 127 Explosions 6610 | . 163 . . 309 285 419 104 352 623 . . 284 . . . 355 597 . 872 . . . . 2247 . . . . . Melee 97 | . . . . . . . . . . . . . . . 97 . . . . . . . . . . . . . . Ramming 297 | . 15 . . . 23 . 13 . . . . . . . 16 . . . . . 5 . . 105 . 41 40 39 . Kinetic 59934 | 74 289 . . 85 864 75 219 . 884 476 12 932 1166 1479 990 510 547 . 1785 273 2642 1695 1127 5740 1780 15804 1576 10723 8187 Thermal 1791 | 85 331 . . 25 33 104 54 . . . . 284 . . 609 69 34 . . . . . . . . 36 . . 127 Explosive 4171 | . 163 . . 309 252 315 50 352 623 . . . . . . 355 597 . 872 . . . . 283 . . . . . Electromagnetic 5093 | . . . . . 962 309 582 23 514 . 133 198 85 . 100 . . . . 223 . . . 1964 . . . . . Impact . | . . . . . . . . . . . . . . . . . . . . . . . . . . . . . . Slashing 97 | . . . . . . . . . . . . . . . 97 . . . . . . . . . . . . . . Piercing . | . . . . . . . . . . . . . . . . . . . . . . . . . . . . . . Highest Corruption 10 | . . . . . . . . . 3 3 3 3 1 . . . 1 . 2 1 . . . 10 . 6 . . . Average Corruption 3 | . . . . . . . . . 1 3 3 3 1 . . . 1 . 1 1 . . . 7 . 2 . . . Corruption Purged 11 | . . . . . . . . . . . . . 1 . . . 1 . . 1 . . . 2 . 6 . . . Effects 128 | . . . . . . . . . 10 3 5 9 . . . . . . 6 . . . . 56 . 39 . . . Message Errors 29 | . . . . . . . . . 2 1 4 3 . . . . . . 2 . . . . 13 . 4 . . . Matter Fused 10 | . . . . . . . . . 2 . . . . . . . . . . . . . . 4 . 4 . . . Heat Flow Errors 12 | . . . . . . . . . 2 . . 1 . . . . . . 1 . . . . 3 . 5 . . . Energy Discharges 11 | . . . . . . . . . . 2 1 2 . . . . . . . . . . . 3 . 3 . . . Data Loss (minor) 14 | . . . . . . . . . 1 . . 1 . . . . . . 2 . . . . 7 . 3 . . . Data Loss (major) 3 | . . . . . . . . . . . . . . . . . . . . . . . . 2 . 1 . . . Misfires 3 | . . . . . . . . . . . . . . . . . . . . . . . . . . 3 . . . Targeting Errors 35 | . . . . . . . . . 3 . . 2 . . . . . . 1 . . . . 17 . 12 . . . Weapon Failures 11 | . . . . . . . . . . . . . . . . . . . . . . . . 7 . 4 . . . Overload Shots . | . . . . . . . . . . . . . . . . . . . . . . . . . . . . . . Overflow Damage 387 | . 26 . . . . 13 . . 49 . . 22 . . 57 15 132 . 4 . . . . 60 . . . 9 . Projectiles 54 | . . . . . . . . . 46 . . . . . . 8 . . . . . . . . . . . . . Explosions 260 | . 26 . . . . 13 . . 3 . . 22 . . . 7 132 . 4 . . . . 53 . . . . . Melee 73 | . . . . . . . . . . . . . . . 57 . . . . . . . . 7 . . . 9 . Knockbacks 12 | . . . . . . . 1 . . . . . . . . . . . . . . . . 5 . 1 . 5 . Impact 2 | . . . . . . . 1 . . . . . . . . . . . . . . . . 1 . . . . . Kinetic 10 | . . . . . . . . . . . . . . . . . . . . . . . . 4 . 1 . 5 . Secondary . | . . . . . . . . . . . . . . . . . . . . . . . . . . . . . . Self-Inflicted Damage 486 | . 59 . . 8 42 18 71 . 16 . . 44 . . . . . . . . . . . 228 . . . . . Shots 14 | . 1 . . 2 2 1 2 . 1 . . 1 . . . . . . . . . . . 4 . . . . . Rammed 24 | . 3 . . . 3 . 1 . . . . . 1 . 2 . . . . . 1 . . 6 . 5 1 1 . Targets Rammed 26 | . 3 . . . 4 . 1 . . . . . 1 . 2 . . . . . 1 . . 7 . 5 1 1 . Kicked . | . . . . . . . . . . . . . . . . . . . . . . . . . . . . . . Crushed 2 | . . . . . 1 . . . . . . . . . . . . . . . . . . 1 . . . . . Highest Temperature 437 | 45 201 . . 44 194 72 324 . 276 280 80 98 106 322 261 168 154 . 262 321 126 307 206 437 126 396 192 198 120 Average Temperature 82 | 18 52 . . 18 51 30 99 . 80 155 41 38 35 120 66 49 44 . 105 98 39 102 77 118 36 105 96 94 30 Received Heat Transfer 3448 | . 132 . . 54 207 27 36 9 306 36 . 432 . 216 72 63 18 . 216 . 104 35 . 180 . 990 9 126 180 Effects 11 | . . . . . . . . . . 3 . . . . . . . . 4 . . 1 . 2 . 1 . . . Energy Bleed 6 | . . . . . . . . . . 2 . . . . . . . . 2 . . 1 . 1 . . . . . Interference 3 | . . . . . . . . . . 1 . . . . . . . . 2 . . . . . . . . . . Matter Decay 1 | . . . . . . . . . . . . . . . . . . . . . . . . 1 . . . . . Short Circuit 1 | . . . . . . . . . . . . . . . . . . . . . . . . . . 1 . . . Siege Activations 51 | . . . . . . . . . . . . . . . . . . . . . . . . 7 . 16 3 8 17 Total Turns 634 | . . . . . . . . . . . . . . . . . . . . . . . . 107 . 238 28 139 122 Longest Duration 53 | . . . . . . . . . . . . . . . . . . . . . . . . 38 . 53 14 43 24 Robots Corrupted 5 | . . . . . 2 . . . . . . . . . . . . . . . . . . 3 . . . . . Combat Hostiles 3 | . . . . . . . . . . . . . . . . . . . . . . . . 3 . . . . . Parts Fried 36 | . . . . . 11 2 2 . . . 1 1 . . 1 . . . . 2 . . . 14 . . . 2 . Impact Corruptions 2 | . . . . . . . . . . . . . . . . . . . . . . . . 1 . . . 1 . Robots Melted . | . . . . . . . . . . . . . . . . . . . . . . . . . . . . . . Combat Hostiles . | . . . . . . . . . . . . . . . . . . . . . . . . . . . . . . Parts Melted 9 | . 1 . . . . . . . . . . . . . 5 . . . . . . . . . . 3 . . . Heat Transferred 2995 | 259 962 . . 74 50 150 50 . . . . 350 . . 925 74 37 . . . . . . . . 37 . . 27 Parts Sabotaged 4 | . . . . . . . . . . . . . . . . . . . . . . . . 4 . . . . . Parts Stolen . | . . . . . . . . . . . . . . . . . . . . . . . . . . . . . . Parts Stripped . | . . . . . . . . . . . . . . . . . . . . . . . . . . . . . . Power Chain Reactions 6 | . . . . . 2 1 1 . . . . 2 . . . . . . . . . . . . . . . . . Missiles Intercepted 3 | . . . . . . . . . . . . . . . . . . . . . . . . . . . . 3 . Alert | -11 -10 -10 -10 -9 -8 -8 -8 -8 -7 -7 -7 -7 -6 -6 -5 -5 -5 -5 -4 -4 -4 -4 -4 -4 -3 -2 -1 -1 -1 ------- Run | Scr Mat Min Exi Min Mat Gar Mat Gar Fac Gar Fac Gar Fac Gar Fac Upp Upp Zhi Pro Fac Ext Cet Arc Hub Res Res Acc Com Ac0 Peak Influence 1275 | 25 218 30 . 125 454 484 388 129 313 217 133 411 279 429 339 . . . . 195 223 338 173 1275 752 1117 415 378 . Initial 579 | . 13 30 . . 40 228 202 66 58 57 98 81 186 114 195 . . . . 60 18 10 113 50 579 . 189 120 . Average 282 | 10 120 30 . 49 246 386 185 101 78 91 110 308 181 296 182 . . . . 75 59 178 151 488 439 580 277 222 . Maximum Alert Level 4 | . 1 . . . 2 2 1 . 1 1 . 2 1 2 1 . . . . . 1 1 . 4 3 4 2 2 . Low Security (%) 47 | 100 60 100 . 100 40 . 49 100 97 83 100 24 79 15 58 . . . . 100 89 60 100 15 38 6 11 30 . Level 1 24 | . 39 . . . 36 48 50 . 2 16 . 60 20 55 41 . . . . . 10 39 . 25 . 6 67 51 . Level 2 21 | . . . . . 23 51 . . . . . 15 . 28 . . . . . . . . . 35 51 62 20 17 . Level 3 6 | . . . . . . . . . . . . . . . . . . . . . . . . 22 9 24 . . . Level 4 . | . . . . . . . . . . . . . . . . . . . . . . . . . . . . . . Level 5 . | . . . . . . . . . . . . . . . . . . . . . . . . . . . . . . High Security . | . . . . . . . . . . . . . . . . . . . . . . . . . . . . . . Max Security . | . . . . . . . . . . . . . . . . . . . . . . . . . . . . . . Squads Dispatched 40 | . 1 . . . 5 . . . 1 . . . . . 2 . . . . . . . . 4 6 15 2 4 . Investigation 6 | . 1 . . . 3 . . . . . . . . . . . . . . . . . . . 1 1 . . . Extermination 10 | . . . . . . . . . . . . . . . 2 . . . . . . . . 1 . 4 1 2 . Reinforcement 16 | . . . . . 2 . . . 1 . . . . . . . . . . . . . . 2 5 3 1 2 . Assault 7 | . . . . . . . . . . . . . . . . . . . . . . . . 1 . 6 . . . Garrison 1 | . . . . . . . . . . . . . . . . . . . . . . . . . . 1 . . . Intercept . | . . . . . . . . . . . . . . . . . . . . . . . . . . . . . . Construction Impeded 3 | . . . . . 1 . . . . . . . . . . . . . . . . . . . 1 1 . . . Haulers Reinforced 2 | . . . . . . . . . . . . . . . . . . . . . . . . . 1 1 . . . Stealth | -11 -10 -10 -10 -9 -8 -8 -8 -8 -7 -7 -7 -7 -6 -6 -5 -5 -5 -5 -4 -4 -4 -4 -4 -4 -3 -2 -1 -1 -1 --------- Run | Scr Mat Min Exi Min Mat Gar Mat Gar Fac Gar Fac Gar Fac Gar Fac Upp Upp Zhi Pro Fac Ext Cet Arc Hub Res Res Acc Com Ac0 Distress Signals 35 | . 2 . . . 2 . 1 . . . . . . . . . . . . . . 2 . 1 8 . . 19 . Communications Jammed 223 | . . . . . . . . . . . . . . . . . . . . 3 . . . 3 . 202 2 13 . Distress Signals 211 | . . . . . . . . . . . . . . . . . . . . 3 . . . 3 . 192 . 13 . Times Spotted 444 | . 9 . . 6 27 10 16 3 18 7 1 22 8 13 8 7 8 . 15 8 21 12 4 44 3 100 4 34 36 Peak Tracking Total 10 | . 3 . . 4 8 6 3 3 6 7 1 10 2 7 2 4 5 . 5 3 5 5 2 7 1 10 1 6 5 Tactical Retreats 20 | . . . . . 5 1 . . . . . 3 . 2 . 2 1 . 3 . . . . 2 . . . 1 . Traps | -11 -10 -10 -10 -9 -8 -8 -8 -8 -7 -7 -7 -7 -6 -6 -5 -5 -5 -5 -4 -4 -4 -4 -4 -4 -3 -2 -1 -1 -1 ------- Run | Scr Mat Min Exi Min Mat Gar Mat Gar Fac Gar Fac Gar Fac Gar Fac Upp Upp Zhi Pro Fac Ext Cet Arc Hub Res Res Acc Com Ac0 Traps Triggered 13 | . . . . . 1 . . . 4 . . . 2 . . . . . . . . . . 3 . 1 . 2 . Indirectly 2 | . . . . . . . . . . . . . . . . . . . . . . . . 2 . . . . . Trap Hack Attempts . | . . . . . . . . . . . . . . . . . . . . . . . . . . . . . . Triggered . | . . . . . . . . . . . . . . . . . . . . . . . . . . . . . . Disarmed . | . . . . . . . . . . . . . . . . . . . . . . . . . . . . . . Reprogrammed . | . . . . . . . . . . . . . . . . . . . . . . . . . . . . . . Reused . | . . . . . . . . . . . . . . . . . . . . . . . . . . . . . . Traps Extracted . | . . . . . . . . . . . . . . . . . . . . . . . . . . . . . . Installed . | . . . . . . . . . . . . . . . . . . . . . . . . . . . . . . Triggered 2 | . . . . . 1 . . . . . . . . . . 1 . . . . . . . . . . . . . Machines | -11 -10 -10 -10 -9 -8 -8 -8 -8 -7 -7 -7 -7 -6 -6 -5 -5 -5 -5 -4 -4 -4 -4 -4 -4 -3 -2 -1 -1 -1 ---------- Run | Scr Mat Min Exi Min Mat Gar Mat Gar Fac Gar Fac Gar Fac Gar Fac Upp Upp Zhi Pro Fac Ext Cet Arc Hub Res Res Acc Com Ac0 Machines Disabled 42 | . 2 . . . 1 . 2 . 4 . . . . . 1 . . . . . 1 . 2 21 . 2 1 2 3 Max in Single Turn 7 | . 2 . . . 1 . 1 . 1 . . . . . 1 . . . . . 1 . 1 7 . 1 1 1 1 Garrison Access 8 | . . . . . . . . . 1 . . . 1 . . . . . . 1 . . . 2 . 2 1 . . Network Hub 4 | . . . . . . . . . . . . . . . . . . . . . . . . 4 . . . . . Machines Sabotaged . | . . . . . . . . . . . . . . . . . . . . . . . . . . . . . . Garrisons Compromised . | . . . . . . . . . . . . . . . . . . . . . . . . . . . . . . Overloaded Fab Kills . | . . . . . . . . . . . . . . . . . . . . . . . . . . . . . . Fab Network Shutdowns . | . . . . . . . . . . . . . . . . . . . . . . . . . . . . . . Hacking | -11 -10 -10 -10 -9 -8 -8 -8 -8 -7 -7 -7 -7 -6 -6 -5 -5 -5 -5 -4 -4 -4 -4 -4 -4 -3 -2 -1 -1 -1 --------- Run | Scr Mat Min Exi Min Mat Gar Mat Gar Fac Gar Fac Gar Fac Gar Fac Upp Upp Zhi Pro Fac Ext Cet Arc Hub Res Res Acc Com Ac0 Machines Accessed 92 | . 6 . 1 . 9 . 5 . 10 . 3 . 5 . 3 . 1 4 . 3 6 . . 8 5 14 5 4 . Terminals 58 | . 5 . . . 6 . 4 . 7 . 1 . 2 . 1 . . . . 1 6 . . 6 3 8 4 4 . Fabricators 4 | . . . . . . . . . 1 . . . . . . . . . . . . . . . 1 2 . . . Repair Stations 1 | . . . . . . . . . . . . . . . 1 . . . . . . . . . . . . . . Recycling Units 8 | . 1 . . . 2 . . . . . . . 1 . 1 . . . . 1 . . . . 1 1 . . . Scanalyzers 2 | . . . . . . . . . . . 1 . . . . . . . . . . . . . . 1 . . . Garrison Access 13 | . . . . . 1 . 1 . 2 . 1 . 2 . . . . . . 1 . . . 2 . 2 1 . . Total Hacks 339 | . 22 . 1 . 35 . 17 . 33 . 4 . 8 . 6 . 1 17 . 6 16 . . 40 38 71 9 15 . Successful 188 | . 14 . 1 . 20 . 12 . 22 . 2 . 4 . 5 . 1 17 . 2 6 . . 17 19 36 5 5 . Failed 148 | . 7 . . . 14 . 5 . 11 . 2 . 4 . 1 . . . . 4 10 . . 23 19 34 4 10 . Catastrophic 18 | . 1 . . . 1 . . . 1 . . . 1 . . . . . . . . . . 4 3 5 . 2 . Database Lockouts 3 | . 1 . . . 1 . . . . . . . . . . . . . . . . . . . . 1 . . . Manual 182 | . 19 . 1 . 29 . 14 . 14 . 1 . 3 . 3 . . . . 4 3 . . 23 20 37 . 11 . Terminals 263 | . 21 . . . 32 . 16 . 25 . 2 . 4 . 2 . . . . 1 16 . . 38 30 53 8 15 . Fabricators 22 | . . . . . . . . . 6 . . . . . . . . . . . . . . . 6 10 . . . Repair Stations 3 | . . . . . . . . . . . . . . . 3 . . . . . . . . . . . . . . Recycling Units 15 | . 1 . . . 2 . . . . . . . 2 . 1 . . . . 4 . . . . 2 3 . . . Scanalyzers 4 | . . . . . . . . . . . 1 . . . . . . . . . . . . . . 3 . . . Garrison Access 13 | . . . . . 1 . 1 . 2 . 1 . 2 . . . . . . 1 . . . 2 . 2 1 . . Terminal Hacks 102 | . 7 . 1 . 10 . 8 . 9 . 1 . 1 . . . 1 17 . 1 5 . . 10 8 17 4 2 . Record 7 | . . . . . . . . . . . . . . . . . . 5 . . . . . . . 2 . . . Part Schematic 9 | . . . . . . . 1 . . . . . . . . . . 4 . . . . . 2 . 2 . . . Robot Analysis 17 | . 3 . . . 2 . 3 . 1 . . . . . . . . 4 . . . . . 2 1 1 . . . Prototype ID Bank 11 | . . . . . 1 . . . 2 . . . 1 . . . . 4 . . . . . . 1 2 . . . Open Door 10 | . . . . . . . . . . . . . . . . . 1 . . 1 4 . . . . . 3 1 . Level Access Points 1 | . . . . . . . . . . . . . . . . . . . . . . . . . 1 . . . . Branch Access Points 3 | . 1 . . . . . . . . . . . . . . . . . . . . . . . . 1 1 . . Machine Index 3 | . . . . . . . . . 1 . . . . . . . . . . . . . . 1 . 1 . . . Terminal Index 5 | . 1 . . . 1 . 1 . . . . . . . . . . . . . 1 . . . 1 . . . . Fabricator Index 1 | . . . . . . . . . . . . . . . . . . . . . . . . . 1 . . . . Garrison Index 1 | . . . . . . . . . . . . . . . . . . . . . . . . . . 1 . . . Unreport Threat 13 | . . . . . 1 . 2 . 1 . . . . . . . . . . . . . . 2 3 4 . . . Locate Traps 12 | . 1 . . . 2 . 1 . 2 . . . . . . . . . . . . . . 3 . 2 . 1 . Registered Components 3 | . . . . . 1 . . . . . 1 . . . . . . . . . . . . . . 1 . . . Registered Prototypes 1 | . . . . . . . . . 1 . . . . . . . . . . . . . . . . . . . . Zone Layout 4 | . 1 . . . 2 . . . 1 . . . . . . . . . . . . . . . . . . . . EX-Prototype ID Bank 1 | . . . 1 . . . . . . . . . . . . . . . . . . . . . . . . . . Fabricator Hacks 11 | . . . . . . . . . 2 . . . . . . . . . . . . . . . 4 5 . . . Load Schematic 5 | . . . . . . . . . 1 . . . . . . . . . . . . . . . 2 2 . . . Build 6 | . . . . . . . . . 1 . . . . . . . . . . . . . . . 2 3 . . . Repair Station Hacks 2 | . . . . . . . . . . . . . . . 2 . . . . . . . . . . . . . . Scan Component 1 | . . . . . . . . . . . . . . . 1 . . . . . . . . . . . . . . Repair 1 | . . . . . . . . . . . . . . . 1 . . . . . . . . . . . . . . Recycling Unit Hacks . | . . . . . . . . . . . . . . . . . . . . . . . . . . . . . . Scanalyzer 2 | . . . . . . . . . . . . . . . . . . . . . . . . . . 2 . . . Insert Component 1 | . . . . . . . . . . . . . . . . . . . . . . . . . . 1 . . . Analyze 1 | . . . . . . . . . . . . . . . . . . . . . . . . . . 1 . . . Garrison Access Hacks 13 | . . . . . 1 . 1 . 2 . 1 . 2 . . . . . . 1 . . . 2 . 2 1 . . Unlock Access 5 | . . . . . 1 . 1 . 1 . 1 . 1 . . . . . . . . . . . . . . . . Seal Access 8 | . . . . . . . . . 1 . . . 1 . . . . . . 1 . . . 2 . 2 1 . . Unauthorized Hacks 58 | . 7 . . . 9 . 3 . 9 . . . 1 . 3 . . . . . 1 . . 5 7 10 . 3 . Terminals 42 | . 6 . . . 7 . 3 . 6 . . . . . 2 . . . . . 1 . . 5 4 5 . 3 . Track 14 | . 4 . . . 3 . . . 2 . . . . . . . . . . . . . . 2 1 1 . 1 . Assimilate 2 | . . . . . . . . . . . . . . . . . . . . . . . . . . 1 . 1 . Botnet 20 | . 2 . . . 3 . 2 . 3 . . . . . 1 . . . . . 1 . . 3 2 2 . 1 . Operators 6 | . . . . . 1 . 1 . 1 . . . . . 1 . . . . . . . . . 1 1 . . . Fabricators 7 | . . . . . . . . . 3 . . . . . . . . . . . . . . . 2 2 . . . Prioritize 3 | . . . . . . . . . 1 . . . . . . . . . . . . . . . 1 1 . . . Siphon 3 | . . . . . . . . . 1 . . . . . . . . . . . . . . . 1 1 . . . Haulers 1 | . . . . . . . . . 1 . . . . . . . . . . . . . . . . . . . . Repair Stations . | . . . . . . . . . . . . . . . . . . . . . . . . . . . . . . Recycling Units 9 | . 1 . . . 2 . . . . . . . 1 . 1 . . . . . . . . . 1 3 . . . Reject 1 | . . . . . . . . . . . . . . . . . . . . . . . . . . 1 . . . Recyclers 5 | . . . . . 1 . . . . . . . 1 . 1 . . . . . . . . . 1 1 . . . Mask 1 | . . . . . . . . . . . . . . . . . . . . . . . . . . 1 . . . Tunnel 2 | . 1 . . . 1 . . . . . . . . . . . . . . . . . . . . . . . . Scanalyzers . | . . . . . . . . . . . . . . . . . . . . . . . . . . . . . . Garrison Access . | . . . . . . . . . . . . . . . . . . . . . . . . . . . . . . Data Cores Recovered 4 | . . . . . . . 1 . 1 . . . . . . . . . . . . . . 2 . . . . . Used 1 | . . . . . . . 1 . . . . . . . . . . . . . . . . . . . . . . Hacking Detections 64 | . 5 . . . 7 . 4 . 8 . 2 . 4 . 3 . . . . 1 5 . . 6 4 10 2 3 . Full Trace Events 2 | . . . . . 1 . . . . . . . . . . . . . . . . . . . . 1 . . . Feedback Events . | . . . . . . . . . . . . . . . . . . . . . . . . . . . . . . Feedback Blocked . | . . . . . . . . . . . . . . . . . . . . . . . . . . . . . . Robot Schematics Acquired . | . . . . . . . . . . . . . . . . . . . . . . . . . . . . . . Robots Built . | . . . . . . . . . . . . . . . . . . . . . . . . . . . . . . Matter . | . . . . . . . . . . . . . . . . . . . . . . . . . . . . . . Time . | . . . . . . . . . . . . . . . . . . . . . . . . . . . . . . Total Robot Build Rating . | . . . . . . . . . . . . . . . . . . . . . . . . . . . . . . Part Schematics Acquired 10 | . . . . . . . 1 . . . . . . . . . . 4 . . . . . 2 . 3 . . . Parts Built 9 | . . . . . . . . . 2 . . . . . . . . . . . . . . . 2 5 . . . Matter 1274 | . . . . . . . . . 146 . . . . . . . . . . . . . . . 472 656 . . . Time 302 | . . . . . . . . . 73 . . . . . . . . . . . . . . . 100 129 . . . Total Part Build Rating 48 | . . . . . . . . . 6 . . . . . . . . . . . . . . . 13 29 . . . Parts Repaired 1 | . . . . . . . . . . . . . . . 1 . . . . . . . . . . . . . . Time 28 | . . . . . . . . . . . . . . . 28 . . . . . . . . . . . . . . Parts Recycled . | . . . . . . . . . . . . . . . . . . . . . . . . . . . . . . Recycled Matter . | . . . . . . . . . . . . . . . . . . . . . . . . . . . . . . Retrieved Matter . | . . . . . . . . . . . . . . . . . . . . . . . . . . . . . . Retrieved Components . | . . . . . . . . . . . . . . . . . . . . . . . . . . . . . . Parts Scanalyzed 1 | . . . . . . . . . . . . . . . . . . . . . . . . . . 1 . . . Part Schematics Acquired 1 | . . . . . . . . . . . . . . . . . . . . . . . . . . 1 . . . Parts Damaged . | . . . . . . . . . . . . . . . . . . . . . . . . . . . . . . Bothacking | -11 -10 -10 -10 -9 -8 -8 -8 -8 -7 -7 -7 -7 -6 -6 -5 -5 -5 -5 -4 -4 -4 -4 -4 -4 -3 -2 -1 -1 -1 ------------ Run | Scr Mat Min Exi Min Mat Gar Mat Gar Fac Gar Fac Gar Fac Gar Fac Upp Upp Zhi Pro Fac Ext Cet Arc Hub Res Res Acc Com Ac0 Used RIF Installer 5 | . . . . . . 1 . 1 . 1 . 1 . 1 . . . . . . . . . . . . . . . Hotswap 1 | . . . . . . . . . . . . . . 1 . . . . . . . . . . . . . . . Command Fork 1 | . . . . . . . . 1 . . . . . . . . . . . . . . . . . . . . . Zone Cloak 1 | . . . . . . . . . . 1 . . . . . . . . . . . . . . . . . . . Watcher Feeds 1 | . . . . . . . . . . . . 1 . . . . . . . . . . . . . . . . . Robots Hacked . | . . . . . . . . . . . . . . . . . . . . . . . . . . . . . . Non-combat . | . . . . . . . . . . . . . . . . . . . . . . . . . . . . . . Combat . | . . . . . . . . . . . . . . . . . . . . . . . . . . . . . . Robot Hacks Applied . | . . . . . . . . . . . . . . . . . . . . . . . . . . . . . . Relay Couplers Released 6 | . . . . . . . . . . . . . . . . . . . . . . . . 2 4 . . . . Machine Destruction 2 | . . . . . . . . . . . . . . . . . . . . . . . . 2 . . . . . Programmers 4 | . . . . . . . . . . . . . . . . . . . . . . . . . 4 . . . . Robots Rewired 13 | . . . . . . . . . . . . . . . . . . . . . 13 . . . . . . . . Allies Hacked . | . . . . . . . . . . . . . . . . . . . . . . . . . . . . . . Hacks Repelled . | . . . . . . . . . . . . . . . . . . . . . . . . . . . . . . Allies | -11 -10 -10 -10 -9 -8 -8 -8 -8 -7 -7 -7 -7 -6 -6 -5 -5 -5 -5 -4 -4 -4 -4 -4 -4 -3 -2 -1 -1 -1 -------- Run | Scr Mat Min Exi Min Mat Gar Mat Gar Fac Gar Fac Gar Fac Gar Fac Upp Upp Zhi Pro Fac Ext Cet Arc Hub Res Res Acc Com Ac0 Total Allies 21 | . . . . . . . . . . . . . . . . . . . . . 20 . . . . 1 . . . Largest Group 14 | . . . . . . . . . . . . . . . . . . . . . 14 10 5 . . 1 . . . Highest-Rated Group 656 | . . . . . . . . . . . . . . . . . . . . . 656 486 281 . . 44 . . . Highest-Rated Ally 156 | . . . . . . . . . . . . . . . . . . . . . 156 156 150 . . 44 . . . Total Orders 5 | . . . . . . . . . . . . . . . . . . . . . . 3 . . . 2 . . . STAY 3 | . . . . . . . . . . . . . . . . . . . . . . 2 . . . 1 . . . FOLLOW 2 | . . . . . . . . . . . . . . . . . . . . . . 1 . . . 1 . . . Ally Attacks 138 | . . . . . . . . . . . . . . . . . . . . . 73 51 14 . . . . . . Total Damage 4405 | . . . . . . . . . . . . . . . . . . . . . 2451 1595 359 . . . . . . Kills 22 | . . . . . . . . . . . . . . . . . . . . . 12 10 . . . . . . . Allies Corrupted . | . . . . . . . . . . . . . . . . . . . . . . . . . . . . . . Allies Melted 1 | . . . . . . . . . . . . . . . . . . . . . 1 . . . . . . . . Intel | -11 -10 -10 -10 -9 -8 -8 -8 -8 -7 -7 -7 -7 -6 -6 -5 -5 -5 -5 -4 -4 -4 -4 -4 -4 -3 -2 -1 -1 -1 ------- Run | Scr Mat Min Exi Min Mat Gar Mat Gar Fac Gar Fac Gar Fac Gar Fac Upp Upp Zhi Pro Fac Ext Cet Arc Hub Res Res Acc Com Ac0 Robot Analysis Total 17 | . 3 . . . 2 . 3 . 1 . . . . . . . . 4 . . . . . 2 1 1 . . . Derelict Logs Recovered 3 | . . . . . . . . . . . . . . . . . 2 . 1 . . . . . . . . . . Drone Launches . | . . . . . . . . . . . . . . . . . . . . . . . . . . . . . . Drone Recoveries . | . . . . . . . . . . . . . . . . . . . . . . . . . . . . . . Exploration | -11 -10 -10 -10 -9 -8 -8 -8 -8 -7 -7 -7 -7 -6 -6 -5 -5 -5 -5 -4 -4 -4 -4 -4 -4 -3 -2 -1 -1 -1 ------------- Run | Scr Mat Min Exi Min Mat Gar Mat Gar Fac Gar Fac Gar Fac Gar Fac Upp Upp Zhi Pro Fac Ext Cet Arc Hub Res Res Acc Com Ac0 Turns Passed 20096 | 93 594 100 518 201 1113 214 696 169 1083 188 326 486 699 318 1012 451 825 209 645 549 1281 332 177 1395 901 2960 408 1599 554 Spaces Moved 9822 | 40 274 63 320 98 523 106 367 99 573 99 188 237 348 142 498 233 468 124 300 296 630 146 82 598 453 1394 216 772 135 Core 30 | 12 . . . . . . . . . . . . . . . . . . . . . . . . . . . . 18 Treads 9792 | 28 274 63 320 98 523 106 367 99 573 99 188 237 348 142 498 233 468 124 300 296 630 146 82 598 453 1394 216 772 117 Legs . | . . . . . . . . . . . . . . . . . . . . . . . . . . . . . . Wheels . | . . . . . . . . . . . . . . . . . . . . . . . . . . . . . . Hover . | . . . . . . . . . . . . . . . . . . . . . . . . . . . . . . Flight . | . . . . . . . . . . . . . . . . . . . . . . . . . . . . . . Fastest Speed 50 | 50 160 160 160 160 160 160 155 155 155 155 155 155 160 160 160 160 160 160 160 160 160 160 160 160 160 152 152 145 50 Average Speed 157 | 127 160 160 160 163 160 160 157 155 155 155 155 159 160 160 160 160 160 160 160 160 160 160 160 160 160 158 152 147 139 Slowest Speed 180 | 160 160 160 160 180 160 160 160 155 155 155 155 180 160 160 160 160 160 160 160 160 160 160 160 160 180 165 152 177 152 Overloaded Moves . | . . . . . . . . . . . . . . . . . . . . . . . . . . . . . . Propulsion Burnouts . | . . . . . . . . . . . . . . . . . . . . . . . . . . . . . . Robots Hopped . | . . . . . . . . . . . . . . . . . . . . . . . . . . . . . . Cave-ins Triggered . | . . . . . . . . . . . . . . . . . . . . . . . . . . . . . . Teleports 1 | . . . . . . . . . . . . . . . . . . . . . . . . . . . . 1 . Exploration Rate (%) 39 | 3 46 19 68 28 60 29 37 25 25 40 8 52 14 40 16 50 62 61 57 14 74 69 87 76 17 43 11 34 13 Regions Visited 29 Branch Regions 13 Pre-discovered Areas 6 | . 1 1 . . 1 . . . . . . . . . . . . 3 . . . . . . . . . . . Known Exits Taken 13 | . 1 . . . 1 . 1 . 1 . 1 . 1 . 1 1 1 1 1 . . . . . 1 . 1 . . Unknown Exits Taken 11 | 1 . 1 1 1 . . . . . . . . . . . . . . . 1 1 1 1 1 . 1 . 1 . Scrap Searched 6 | . . . . 1 . . . . . . . . . . . 1 1 . 3 . . . . . . . . . . Spaces Dug 309 | . 8 . . . 9 . 6 . 11 . 2 . 3 . 11 9 6 . 6 5 . . . 195 9 22 2 5 . Terrain Destroyed 1183 | . 31 . . 16 40 6 39 3 15 . 2 . 3 . 11 40 50 . 26 5 1 2 5 736 12 25 23 18 74 Melee 30 | . . . . . . . 6 . 11 . 2 . 3 . 8 . . . . . . . . . . . . . . Projectile 275 | . 8 . . . 9 . . . . . . . . . 3 12 7 . 12 5 1 2 5 80 12 25 2 18 74 AOE 878 | . 23 . . 16 31 6 33 3 4 . . . . . . 28 43 . 14 . . . . 656 . . 21 . . Terrain Rammed . | . . . . . . . . . . . . . . . . . . . . . . . . . . . . . . Walls Destroyed . | . . . . . . . . . . . . . . . . . . . . . . . . . . . . . . Machines Disabled . | . . . . . . . . . . . . . . . . . . . . . . . . . . . . . . Actions | -11 -10 -10 -10 -9 -8 -8 -8 -8 -7 -7 -7 -7 -6 -6 -5 -5 -5 -5 -4 -4 -4 -4 -4 -4 -3 -2 -1 -1 -1 --------- Run | Scr Mat Min Exi Min Mat Gar Mat Gar Fac Gar Fac Gar Fac Gar Fac Upp Upp Zhi Pro Fac Ext Cet Arc Hub Res Res Acc Com Ac0 Total 12461 | 64 345 62 327 126 681 126 425 106 685 113 212 294 446 190 642 275 510 135 386 336 836 218 104 817 576 1801 262 1019 342 Wait 215 | . 8 . . 5 8 . 2 . 6 . . . . 6 1 8 2 . 3 1 24 2 . 26 20 24 8 25 36 Move 9788 | 39 273 62 319 97 522 104 366 97 572 97 187 235 347 140 497 232 467 123 299 295 629 145 81 597 452 1393 215 771 135 Hop . | . . . . . . . . . . . . . . . . . . . . . . . . . . . . . . Pick Up 266 | 8 8 . 4 7 18 1 4 . 25 1 7 11 24 . 18 1 2 2 6 8 11 13 . 11 17 34 4 14 7 Fast Attach 103 | 3 . . . . 6 . 1 . 2 . . 1 2 . 12 . . 4 4 . 6 4 . 10 10 15 1 13 9 Attach 155 | 4 . . . 1 11 1 1 . 7 . . 11 6 1 10 . 2 1 4 2 8 7 . 11 7 33 3 7 17 Detach 37 | . . . . . 2 . . . 1 . . . 1 . 3 . . . 2 . 2 2 . 7 4 7 1 2 3 Swap 608 | . 10 . 2 5 26 9 16 6 25 6 8 7 29 18 30 13 18 . 23 15 20 13 8 47 25 107 10 69 43 Drop 274 | 1 5 . 2 3 26 1 7 . 10 1 5 5 14 . 28 1 2 5 7 . 15 18 4 13 17 36 3 33 12 Fire 866 | 9 38 . . 8 58 10 21 3 26 8 3 24 19 25 32 20 17 . 38 15 28 14 11 88 24 147 16 84 80 Melee 31 | . . . . . . . 6 . 11 . 2 . 3 . 9 . . . . . . . . . . . . . . Ram . | . . . . . . . . . . . . . . . . . . . . . . . . . . . . . . Kick . | . . . . . . . . . . . . . . . . . . . . . . . . . . . . . . Crush 26 | . 3 . . . 4 . 1 . . . . . 1 . 2 . . . . . 1 . . 7 . 5 1 1 . Escape Stasis . | . . . . . . . . . . . . . . . . . . . . . . . . . . . . . . Rewire 92 | . . . . . . . . . . . . . . . . . . . . . 92 . . . . . . . . Trap . | . . . . . . . . . . . . . . . . . . . . . . . . . . . . . . Miscellaneous . | . . . . . . . . . . . . . . . . . . . . . . . . . . . . . . Route ------- -11/Scrapyard -10/Materials -10/Mines -10/Exiles (discovered 2 exits: [*Min x2]) -9/Mines (discovered 2 exits: *Mat x2) -8/Materials (discovered 3 exits: *Fac x2 / Gar) -8/Garrison -8/Materials (discovered 3 exits: *Fac x2 / Gar) -8/Garrison -7/Factory (discovered 2 exits: [*Low] / Gar) -7/Garrison -7/Factory -7/Garrison (discovered 3 exits: *Fac x3) -6/Factory (discovered 2 exits: [*Low] / Gar) -6/Garrison -5/Factory -5/Upper Caves -5/Upper Caves (discovered 2 exits: *Fac / *Zhi) -5/Zhirov -4/Proximity Caves -4/Factory (discovered 3 exits: *Res / Upp / *Ext) -4/Extension (discovered 3 exits: *Res x2 / [*Cet]) -4/Cetus (discovered 2 exits: *Res / *Arc) -4/Archives (discovered 3 exits: *Res / *Hub x2) -4/Hub_04(d) (discovered 4 exits: *Res x4) -3/Research (discovered 3 exits: *Res x3) -2/Research (discovered 3 exits: *Acc / Tes x2) -1/Access -1/Command (discovered 3 exits: [Sur x2] / [*Ac0]) -1/Access_0 History --------- Turn | Location | Event 29 | -11/Scrapyard | Discovered new exit (range 14) 94 | -11/Scrapyard | Entered Materials 123 | -10/Materials | Central database locked down 306 | -10/Materials | Build established: Mutant 397 | -10/Materials | Identified exit to Mines 688 | -10/Materials | Entered Mines 729 | -10/Mines | Learned location of Storage (-7) 756 | -10/Mines | Discovered new exit (range 15) 781 | -10/Mines | Deemed a non-threat by the Exiles lab entrance 788 | -10/Mines | Entered Exiles 812 | -10/Exiles | Discovered new exit (range 15) 832 | -10/Exiles | Met 8R-AWN 854 | -10/Exiles | Met EX-HEX 936 | -10/Exiles | Met EX-DEC 1083 | -10/Exiles | Met EX-BIN 1105 | -10/Exiles | Aligned with FarCom system 1107 | -10/Exiles | Given EX-Vault access code 1144 | -10/Exiles | Opened EX-Vault 1157 | -10/Exiles | Found Lightpack 2.0 1191 | -10/Exiles | Warned to stay clear of 0b10 Research branches 1294 | -10/Exiles | Discovered new exit (range 10) 1306 | -10/Exiles | Left Exiles lab with Lightpack 2.0 1306 | -10/Exiles | Entered Mines 1407 | -9/Mines | Discovered new exit (range 15) 1422 | -9/Mines | Discovered new exit (range 10) 1507 | -9/Mines | Entered Materials 1507 | -8/Materials | Evolved 4 slots: Propulsion x1, Utility x2, Weapon x1 1794 | -8/Materials | Central database locked down 2262 | -8/Materials | Discovered new exit (range 15) 2365 | -8/Materials | Build established: Scavenger-Skirmisher 2525 | -8/Materials | Discovered new exit (range 14) 2619 | -8/Materials | Identified exit to Garrison 2620 | -8/Materials | Entered Garrison 2665 | -8/Garrison | Triggered checkpoint 2713 | -8/Garrison | Destroyed 7 combat bots 2803 | -8/Garrison | Discovered new exit (range 10) 2826 | -8/Garrison | Installed Relay Interface Framework 2834 | -8/Garrison | Entered Materials 2935 | -8/Materials | Discovered new exit (range 8) 3089 | -8/Materials | Discovered new exit (range 10) 3529 | -8/Materials | Identified exit to Garrison 3530 | -8/Materials | Entered Garrison 3599 | -8/Garrison | Triggered checkpoint 3620 | -8/Garrison | Triggered checkpoint 3667 | -8/Garrison | Discovered new exit (range 12) 3692 | -8/Garrison | Expanded RIF knowledge: Command Fork 3699 | -8/Garrison | Entered Factory 3699 | -7/Factory | Evolved 2 slots: Utility x1, Weapon x1 4004 | -7/Factory | Discovered new exit (range 7) 4007 | -7/Factory | Build established: Scavenger-Assassin 4317 | -7/Factory | Fabricated Adv. Terrain Scanner (x2) 4509 | -7/Factory | Destroyed 7 combat bots 4781 | -7/Factory | Identified exit to Garrison 4782 | -7/Factory | Entered Garrison 4790 | -7/Garrison | Expanded RIF knowledge: Zone Cloak 4908 | -7/Garrison | Discovered new exit (range 17) 4960 | -7/Garrison | Destroyed 7 combat bots 4968 | -7/Garrison | Build established: Hauler-Skirmisher 4970 | -7/Garrison | Entered Factory 5295 | -7/Factory | Identified exit to Garrison 5296 | -7/Factory | Entered Garrison 5351 | -7/Garrison | Triggered checkpoint 5390 | -7/Garrison | Triggered checkpoint 5398 | -7/Garrison | Triggered checkpoint 5436 | -7/Garrison | Triggered checkpoint 5489 | -7/Garrison | Lost 10 parts (1p4n1u4w) 5490 | -7/Garrison | Destroyed 16 combat bots 5569 | -7/Garrison | Discovered new exit (range 19) 5654 | -7/Garrison | Discovered new exit (range 10) 5749 | -7/Garrison | Discovered new exit (range 12) 5750 | -7/Garrison | Build established: Scavenger-Skirmisher 5774 | -7/Garrison | Expanded RIF knowledge: Patrol Navigation 5782 | -7/Garrison | Entered Factory 5782 | -6/Factory | Evolved 2 slots: Utility x2 5881 | -6/Factory | Discovered new exit (range 18) 6479 | -6/Factory | Identified exit to Garrison 6481 | -6/Factory | Entered Garrison 6489 | -6/Garrison | Expanded RIF knowledge: Hotswap 6581 | -6/Garrison | Triggered checkpoint 6689 | -6/Garrison | Build established: Hauler-Skirmisher 6769 | -6/Garrison | Discovered new exit (range 19) 6799 | -6/Garrison | Entered Factory 6799 | -5/Factory | Evolved 2 slots: Propulsion x1, Utility x1 7167 | -5/Factory | Build established: Hauler-Assassin 7427 | -5/Factory | Discovered new exit (range 19) 7475 | -5/Factory | Identified exit to Upper Caves 7764 | -5/Factory | Repaired Adv. Salvage Targeting Computer 7811 | -5/Factory | Entered Upper Caves 8013 | -5/Upper Caves | Build established: Scavenger-Mutant 8109 | -5/Upper Caves | Attracted the attention of an 0b10 checkpoint 8245 | -5/Upper Caves | Discovered new exit (range 15) 8261 | -5/Upper Caves | Identified exit to Upper Caves 8262 | -5/Upper Caves | Entered another Upper Caves area 8266 | -5/Upper Caves | Discovered new exit (range 22) 8447 | -5/Upper Caves | Learned Factory security intel 8918 | -5/Upper Caves | Attracted the attention of an 0b10 checkpoint 9073 | -5/Upper Caves | Discovered new exit (range 10) 9085 | -5/Upper Caves | Identified exit to Zhirov 9087 | -5/Upper Caves | Entered Zhirov 9087 | -5/Zhirov | Discovered new exit (range 4) 9116 | -5/Zhirov | Met Zhirov 9152 | -5/Zhirov | Found Alien Artifact 9152 | -5/Zhirov | Identified Integrated Reactor 9152 | -5/Zhirov | Installed Integrated Reactor, increased core energy generation (+10) 9202 | -5/Zhirov | Found Alien Artifact 9235 | -5/Zhirov | Build established: Scavenger-Skirmisher 9245 | -5/Zhirov | Learned location of Quarantine (-3) 9245 | -5/Zhirov | Learned location of Testing (-2) 9245 | -5/Zhirov | Learned location of Command (-1) 9253 | -5/Zhirov | Zhirov requested help retrieving the SGEMP Prototype 9294 | -5/Zhirov | Identified exit to Proximity Caves 9296 | -5/Zhirov | Entered Proximity Caves 9355 | -4/Proximity Caves | Learned Research trap positions 9879 | -4/Proximity Caves | Discovered new exit (range 13) 9929 | -4/Proximity Caves | Identified exit to Factory 9941 | -4/Proximity Caves | Entered Factory 9941 | -4/Factory | Evolved 2 slots: Utility x1, Weapon x1 9942 | -4/Factory | Identified exit to Upper Caves 10170 | -4/Factory | Spotted B-86 Titan 10244 | -4/Factory | Discovered new exit (range 4) 10245 | -4/Factory | Discovered new exit (range 18) 10490 | -4/Factory | Entered Extension 10549 | -4/Extension | Rescued a captive Derelict 10550 | -4/Extension | Rescued a captive Derelict 10726 | -4/Extension | Rescued a captive Derelict 10727 | -4/Extension | Rescued a captive Derelict 10894 | -4/Extension | Spotted B-86 Titan 10900 | -4/Extension | Rescued a captive Derelict 10901 | -4/Extension | Rescued a captive Derelict 10942 | -4/Extension | Rescued A7 11428 | -4/Extension | Build established: Commander-Skirmisher 11475 | -4/Extension | Allies destroyed B-86 Titan 11476 | -4/Extension | Spotted B-86 Titan 11500 | -4/Extension | Allies destroyed B-86 Titan 11557 | -4/Extension | Discovered new exit (range 12) 11716 | -4/Extension | Discovered new exit (range 24) 11722 | -4/Extension | Discovered new exit (range 19) 11771 | -4/Extension | Entered Cetus 11771 | -4/Cetus | Accompanied by 10 allies (A7) 11776 | -4/Cetus | Acquired a Cetus Manufacturing Module code from A7 11791 | -4/Cetus | Spotted Cetus Guard 11791 | -4/Cetus | Spotted Cetus Guard 11793 | -4/Cetus | Spotted Cetus Guard 11797 | -4/Cetus | Allies destroyed Cetus Guard 11798 | -4/Cetus | Spotted Cetus Guard 11804 | -4/Cetus | Allies destroyed Cetus Guard 11810 | -4/Cetus | Destroyed Cetus Guard 11815 | -4/Cetus | Allies destroyed Cetus Guard 11930 | -4/Cetus | Discovered new exit (range 20) 11960 | -4/Cetus | Spotted Cetus Guard 11961 | -4/Cetus | Spotted Cetus Guard 11963 | -4/Cetus | Spotted Cetus Guard 11968 | -4/Cetus | Spotted Cetus Guard 11969 | -4/Cetus | Allies destroyed Cetus Guard 11972 | -4/Cetus | Destroyed Cetus Guard 11978 | -4/Cetus | Allies destroyed Cetus Guard 11983 | -4/Cetus | Discovered new exit (range 19) 11993 | -4/Cetus | Allies destroyed Cetus Guard 12012 | -4/Cetus | Met Revision 17 12099 | -4/Cetus | Build established: Hauler-Skirmisher 12103 | -4/Cetus | Entered Archives 12103 | -4/Archives | Accompanied by 5 allies (A7) 12188 | -4/Archives | Unable to access archive contents 12194 | -4/Archives | Discovered new exit (range 15) 12213 | -4/Archives | Discovered new exit (range 17) 12226 | -4/Archives | Discovered new exit (range 20) 12231 | -4/Archives | Unable to access archive contents 12251 | -4/Archives | Unable to access archive contents 12280 | -4/Archives | Entered Hub_04(d) 12295 | -4/Hub_04(d) | Discovered new exit (range 22) 12399 | -4/Hub_04(d) | Spotted B-86 Titan 12421 | -4/Hub_04(d) | Destroyed B-86 Titan 12508 | -4/Hub_04(d) | Discovered new exit (range 21) 12577 | -4/Hub_04(d) | Network Hub disabled 12749 | -4/Hub_04(d) | Network Hub disabled 12753 | -4/Hub_04(d) | Spotted Lightning 12760 | -4/Hub_04(d) | Spotted Lightning 12772 | -4/Hub_04(d) | Destroyed Lightning 12776 | -4/Hub_04(d) | Spotted Lightning 12780 | -4/Hub_04(d) | First assault squad dispatched 12793 | -4/Hub_04(d) | Destroyed Lightning 12808 | -4/Hub_04(d) | System corruption reached 10% 12811 | -4/Hub_04(d) | Destroyed Lightning 12818 | -4/Hub_04(d) | Found Prototype Processor 12818 | -4/Hub_04(d) | Identified Exp. Targeting Computer 12825 | -4/Hub_04(d) | Found Prototype Energy Cannon 12825 | -4/Hub_04(d) | Identified EMDS 12843 | -4/Hub_04(d) | Found Prototype Device 12843 | -4/Hub_04(d) | Identified EM Dispersion Field 13086 | -4/Hub_04(d) | Discovered new exit (range 21) 13354 | -4/Hub_04(d) | Spotted Lightning 13355 | -4/Hub_04(d) | Spotted Lightning 13355 | -4/Hub_04(d) | Spotted Lightning 13362 | -4/Hub_04(d) | Destroyed Lightning 13366 | -4/Hub_04(d) | Destroyed Lightning 13374 | -4/Hub_04(d) | Destroyed Lightning 13384 | -4/Hub_04(d) | Discovered new exit (range 13) 13448 | -4/Hub_04(d) | Network Hub disabled 13470 | -4/Hub_04(d) | Destroyed 7 combat bots 13665 | -4/Hub_04(d) | Spotted Lightning 13665 | -4/Hub_04(d) | Spotted Lightning 13665 | -4/Hub_04(d) | Spotted Lightning 13665 | -4/Hub_04(d) | Network Hub disabled 13675 | -4/Hub_04(d) | Entered Research 13675 | -3/Research | Evolved 2 slots: Utility x2 13676 | -3/Research | Loaded intel: 96 trap records 13875 | -3/Research | Revision forces began assault on 0b10 13888 | -3/Research | Met up with Revision 17++ 14087 | -3/Research | Identified exit to Research 14298 | -3/Research | Fabricated Adv. Armor Integrity Analyzer (x1) 14318 | -3/Research | Found Antimissile System 14340 | -3/Research | Fabricated Exp. Optical Array (x1) 14375 | -3/Research | Research terminal network offline 14570 | -3/Research | Build established: Hauler-Mutant 14576 | -3/Research | Entered another Research area 14576 | -2/Research | Evolved 2 slots: Utility x1, Weapon x1 14911 | -2/Research | Garrison activated, responded to threat 14940 | -2/Research | Spotted B-90 Cyclops 14985 | -2/Research | Destroyed B-90 Cyclops 15015 | -2/Research | Destroyed 21 combat bots 15032 | -2/Research | Lost 12 parts (1p3n2u6w) 15076 | -2/Research | First assault squad dispatched 15098 | -2/Research | Fabricated Exp. Terrain Scan Processor (x1) 15136 | -2/Research | Destroyed 7 combat bots 15237 | -2/Research | Lost 3 parts (1u2w) 15504 | -2/Research | Destroyed 8 combat bots 15724 | -2/Research | Found Prototype Processor 15724 | -2/Research | Identified Spectral Analyzer 16072 | -2/Research | Fabricated KE Penetrator (x2) 16098 | -2/Research | Fabricated KE Penetrator (x2) 16328 | -2/Research | Identified exit to Testing 16888 | -2/Research | Build established: Scavenger-Executioner 17466 | -2/Research | Discovered new exit (range 24) 17489 | -2/Research | Central database locked down 17536 | -2/Research | Entered Access 17536 | -1/Access | Evolved 2 slots: Utility x1, Weapon x1 17583 | -1/Access | Identified exit to Command 17755 | -1/Access | Spotted B-99 Colossus 17768 | -1/Access | Destroyed B-99 Colossus 17788 | -1/Access | Found Prototype Ballistic Gun 17788 | -1/Access | Identified Multirail 17803 | -1/Access | Found Multirail 17944 | -1/Access | Entered Command 18090 | -1/Command | Discovered new exit (range 22) 18514 | -1/Command | Spotted M Guard 18514 | -1/Command | Spotted M Guard 18514 | -1/Command | Spotted Combat Programmer 18515 | -1/Command | Spotted Combat Programmer 18576 | -1/Command | Destroyed Combat Programmer 18590 | -1/Command | Destroyed Combat Programmer 18889 | -1/Command | Destroyed M Guard 18896 | -1/Command | Destroyed M Guard 18896 | -1/Command | All MAIN.C guards destroyed 18930 | -1/Command | Found Prototype Reactor 18930 | -1/Command | Identified Zero-point Reactor 18948 | -1/Command | Found Thermal Barrier 18950 | -1/Command | Found Zero-point Reactor 19096 | -1/Command | Met MAIN.C 19128 | -1/Command | Destroyed MAIN.C Shell 19128 | -1/Command | 0b10 Conduit disabled 19131 | -1/Command | MAIN.C activated Command garrisons 19148 | -1/Command | Destroyed MAIN.C 19215 | -1/Command | Discovered new exit (range 24) 19538 | -1/Command | Identified Transdimensional Reconstructor 19538 | -1/Command | Warped through subspace to slip node 19538 | -1/Command | Discovered new exit (range 4) 19543 | -1/Command | Entered Access_0 19545 | -1/Access_0 | Met Architect 19560 | -1/Access_0 | Destroyed A8 19569 | -1/Access_0 | Architect warped through subspace 19588 | -1/Access_0 | Found Prototype Device 19588 | -1/Access_0 | Identified Exp. Thermal Shield 19605 | -1/Access_0 | Architect warped through subspace 19637 | -1/Access_0 | Architect warped through subspace 19670 | -1/Access_0 | Architect warped through subspace 19700 | -1/Access_0 | Architect warped through subspace 19726 | -1/Access_0 | Subspace Access Node disabled 19733 | -1/Access_0 | Architect warped through subspace 19774 | -1/Access_0 | Architect warped through subspace 19786 | -1/Access_0 | Subspace Access Node disabled 19799 | -1/Access_0 | Lost 4 parts (1n1u2w) 19807 | -1/Access_0 | Architect warped through subspace 19840 | -1/Access_0 | Architect warped through subspace 19867 | -1/Access_0 | Architect warped through subspace 19888 | -1/Access_0 | Architect warped through subspace 19912 | -1/Access_0 | Architect warped through subspace 19926 | -1/Access_0 | Architect warped through subspace 19950 | -1/Access_0 | Architect warped through subspace 19968 | -1/Access_0 | Architect warped through subspace 19974 | -1/Access_0 | Lost 3 parts (3w) 19999 | -1/Access_0 | Architect warped through subspace 20015 | -1/Access_0 | Core integrity fell below 50% 20017 | -1/Access_0 | Architect warped through subspace 20019 | -1/Access_0 | Subspace Access Node disabled 20033 | -1/Access_0 | Architect warped through subspace 20071 | -1/Access_0 | A6 warped into view 20084 | -1/Access_0 | Core integrity fell below 20% 20097 | -1/Access_0 | Destroyed by Architect with Modified Quantum Sheargun Last Messages --------------- 20080_ Acquired 110 matter. 20080_ Dropped Lrg. Storage Unit. 20080_ A6 follow-up attacks with Enh. Force Lance. 20080_ Penetrated by HV Slug. 20080_ Critical hit. 20080_ Zero-point Reactor destroyed. 20080_ Penetrated by HV Slug. 20080_ Adv. Armor Integrity Analyzer destroyed. 20081_ Dropped Lrg. Storage Unit. 20081_ Lrn. Tractor Beam destroyed. 20081_ Penetrated by Quantum Shear. 20081_ Penetrated by HV Slug. 20082_ Acquired Lrn. Terrain Scanner. 20083_ Penetrated by HV Slug. 20084_ Knocked back. 20086_ A6 follow-up attacks with Enh. Force Lance. 20090_ Quantum Shear penetrates Wall. 20093_ Penetrated by Quantum Shear. 20095_ Exp. Matter Compressor severed. 20095_ Penetrated by Quantum Shear. Map ----- +----------------------------------------------------+ | ?????????????????????????????????????????????????? | | ?????????????????????????????????????????????????? | | ?????????????????????? ???#?? ???????????????????? | | ????????????????????"???? ???????????????????????? | | ???????????????????????????#??????? ?????????????? | | ?????????????????? ? ? ???#?###????? ????????????? | | ????????????????????? ?? #??#????#? ? ??????????? | | ??????????????????#??? ??##???#?????????????##?? | | ??????????? ????? ??????#?????#?###?#????#????## | | ?????????????#? ? ????##??#?###??#?#???#??#???#?## | | ???????????????#? ?##??#??#?#?#??####? ??###??# | | ??????????????#??#??? ?###?????#??????#?? ?##????# | | ???????#?? ? ?#?##?? ? ??#?############?? ?##?#??? | | ????????# ????######?#?###?##?#?#?##??# #?#??### | | ???????? ? #??#?####?#?#???#??###?? ?##?#?? | | ?????## ? ?? #?#??#####??#??#?###?### ?#####? | | ??????? ?? ? #?#####?###?#########?### ? ? ? | | ????# ????? ###?#######???#####???#?# ## | | ????#?? #####?#####?###########?### ??#"## | | ????? ? #######?################### #??# # | | ????? ? ? #?#?###?######?############ #####" | | ???? ## ####??####?#??################### ###### | | ?? ?##?######?#?###?##################### ###### | | ???#########?#?#######?#"" "############## ###### | | ????######?###?##?#?####"""""############# ###### | | ?? ##################### @ "############# ##### | | ???###?##??###?######### p ############## ##### | | ? #######??############ ##########" "## | | ##?######?############ ! ### # "" | | ?#?#######?############ ##### "" | | ?? ############# ########### #### | | ? ? ############# ############ ###### | | ?# ############# ########### #####" | | ? #### ############ ################## | | ?#### ?########### ###### #### ### | | ###?# ?## #### ## | | ?#?## ### | | ??? #### ## ## | | #??? ? ########;; ## ######### ######## | | ### ### #########; "####################### | | ?## #####" #########! ################# ##### | | #?### #####"" #######!0!;" ############### ##### | | ?#### #######" #" "" !!!!!""#"""####"##"## "### | | #?#?#?##?#####"!* """!!!; "" | | ?###??#####"""!=!! !* "" | | ##?#? # "" = !!! """""""""##"""#" """# | | ?? # """ !* ]! ! ;"" ############## ##### | | =!! ;" ############### ##### | | = ! """"""" ######################## | | #" """" ! " ###" "######################## | +----------------------------------------------------+ Best States ------------- Heat Dissipation 87 Coolant Potential 120 Energy Generation 43 Energy Capacity 350 Matter Stores 665 Matter Capacity 800 Sight Range 23 Robot Scan Range 13 Terrain Scan Range 24 Terrain Scan Density 1010 Jamming Range 16 EM Shielding 2 Armor Coverage 450 Resistance: KI 50 Resistance: TH 70 Resistance: EX 20 Resistance: EM 95 Resistance: I 20 Resistance: S 20 Resistance: P 20 Propulsion Shielding 66 Utility Shielding 66 Weapon Shielding 66 Point Defense Rating 240 Weapon Cycling 30 Evasion (%) 50 Targeting Accuracy 12 Target Analysis 8 Armor Integrity Analysis 66 Recoil Reduction 4 Kinecelleration 40 Salvage Targeting 4 Offensive Hacking 34 Defensive Hacking 14 Item Schematics ----------------- Adv. Terrain Scanner | -8/Materials | Hacked Assault Drone Bay | -5/Zhirov | Free Exp. Heat Sink | -5/Zhirov | Free Exp. Optical Array | -5/Zhirov | Free Imp. Arc Thrower | -5/Zhirov | Free Matter Compressor | -4/Hub_04(d) | Hacked Adv. Armor Integrity Analyzer | -4/Hub_04(d) | Hacked Exp. Terrain Scan Processor | -2/Research | Hacked KE Penetrator | -2/Research | Hacked Exp. Matter Compressor | -2/Research | Scanalyzed Robot Schematics ------------------ None Fabricated ------------ Adv. Terrain Scanner | x2 | -7/Factory Adv. Armor Integrity Analyzer | x1 | -3/Research Exp. Optical Array | x1 | -3/Research Exp. Terrain Scan Processor | x1 | -2/Research KE Penetrator | x2 | -2/Research KE Penetrator | x2 | -2/Research Alien Tech Used ----------------- Integrated Reactor Transdimensional Reconstructor Achievements -------------- 404 Behind The Curtain No Explosion For You Challenges ------------ None Game ------ Seed NovaCannonRigger Manual? 0 Play Time 07:08:40 Cumulative 469.0 hours Start 2022.01.04 @ 22:05:56 End 2022.01.07 @ 02:10:16 Sessions 17 Manual Loads 0 Difficulty Adventurer Special Mode None Game No. 221 Rogue 93 Adventurer 126 Explorer 2 Win Type - Total 39 Types 32/3/2/0/1/0/0/0/1 Lore% 64 Gallery% 84 Achievement% 65 Wizard Run 0 Options --------- ASCII 0 Keyboard 1 Movement Numpad Keybinds 0 Fullscreen 1 Font 36/TerminusFine Map View 76x50 Tactical HUD 1 Map Filters NONE Filters NONE Steam 1 RUN: 575c08cd-376b-4fcd-b2b3-ab552a946b0b